fUSD/lending_fUSD_20240630
["ID","MTS","AMOUNT","RATE_DAILY","PERIOD"]
[330743426,1719751835352,-251.97232857,0.00013798,2]
[330743427,1719751835362,-5767.16459393,0.00013799,2]
[330743428,1719751835372,-1000.0,0.000138,5]
[330743429,1719751835381,-789.07,0.00013808,3]
[330743430,1719751835391,-500.0,0.00013808,3]
[330743431,1719751835400,-500.0,0.00013808,3]
[330743432,1719751835410,-553.37,0.00013808,3]
[330743433,1719751835420,-500.0,0.00013808,3]
[330743434,1719751835429,-309.66298547,0.00013808,3]
[330743435,1719751835438,-500.0,0.00013808,3]
[330743436,1719751835448,-500.0,0.00013808,3]
[330743437,1719751835458,-500.0,0.00013808,3]
[330743438,1719751835468,-712.25,0.00013808,3]
[330743439,1719751835477,-500.0,0.00013808,3]
[330743440,1719751835487,-196.42,0.00013808,3]
[330743441,1719751835496,-500.0,0.00013808,3]
[330743442,1719751835505,-500.0,0.00013808,3]
[330743443,1719751835514,-500.0,0.00013808,3]
[330743444,1719751835524,-236.95,0.00013808,3]
[330743445,1719751835535,-500.0,0.00013808,3]
[330743446,1719751835547,-500.0,0.00013808,3]
[330743447,1719751835556,-978.6,0.00013808,3]
[330743448,1719751835566,-186.52,0.00013808,3]
[330743449,1719751835576,-500.0,0.00013808,3]
[330743450,1719751835585,-612.47,0.00013808,3]
[330743451,1719751835595,-500.0,0.00013808,3]
[330743452,1719751835606,-364.09,0.00013808,3]
[330743453,1719751835615,-570.68,0.00013808,3]
[330743454,1719751835626,-500.0,0.00013808,3]
[330743455,1719751835636,-500.0,0.00013808,3]
[330743456,1719751835646,-500.0,0.00013808,3]
[330743457,1719751835656,-500.0,0.00013808,3]
[330743458,1719751835668,-500.0,0.00013808,3]
[330743459,1719751835678,-500.0,0.00013808,3]
[330743460,1719751835687,-511.71,0.00013808,3]
[330743461,1719751835697,-500.0,0.00013808,3]
[330743462,1719751835708,-500.0,0.00013808,3]
[330743463,1719751835717,-500.0,0.00013808,3]
[330743464,1719751835726,-762.53,0.00013808,3]
[330743465,1719751835737,-500.0,0.00013808,3]
[330743466,1719751835747,-2393.02,0.00013808,3]
[330743467,1719751835758,-500.0,0.00013808,3]
[330743468,1719751835767,-500.0,0.00013808,3]
[330743469,1719751835776,-1565.21,0.00013808,3]
[330743470,1719751835785,-500.0,0.00013808,3]
[330743471,1719751835795,-598.22,0.00013808,3]
[330743472,1719751835804,-500.0,0.00013808,3]
[330743473,1719751835813,-229.83,0.00013808,3]
[330743474,1719751835822,-500.0,0.00013808,3]
[330743475,1719751835831,-500.0,0.00013808,3]
[330743476,1719751835840,-500.0,0.00013808,3]
[330743477,1719751835849,-500.0,0.00013808,3]
[330743478,1719751835858,-500.0,0.00013808,3]
[330743479,1719751835867,-241.47,0.00013808,3]
[330743480,1719751835877,-500.0,0.00013808,3]
[330743481,1719751835886,-500.0,0.00013808,3]
[330743482,1719751835895,-500.0,0.00013808,3]
[330743483,1719751835904,-1159.53,0.00013808,3]
[330743484,1719751835914,-500.0,0.00013808,3]
[330743485,1719751835923,-500.0,0.00013808,3]
[330743486,1719751835932,-500.0,0.00013808,3]
[330743487,1719751835942,-612.91,0.00013808,3]
[330743488,1719751835951,-525.63,0.00013808,3]
[330743489,1719751835960,-500.0,0.00013808,3]
[330743490,1719751835969,-614.41,0.00013808,3]
[330743491,1719751835979,-658.6,0.00013808,3]
[330743492,1719751835988,-888.46,0.00013808,3]
[330743493,1719751835997,-500.0,0.00013808,3]
[330743494,1719751836007,-500.0,0.00013808,3]
[330743495,1719751836016,-675.65,0.00013808,3]
[330743496,1719751836025,-500.0,0.00013808,3]
[330743497,1719751836034,-500.0,0.00013808,3]
[330743498,1719751836043,-663.14,0.00013808,3]
[330743499,1719751836052,-500.0,0.00013808,3]
[330743500,1719751836062,-500.0,0.00013808,3]
[330743501,1719751836071,-629.72,0.00013808,3]
[330743502,1719751836080,-544.24,0.00013808,3]
[330743503,1719751836089,-1355.84,0.00013808,3]
[330743504,1719751836098,-500.0,0.00013808,3]
[330743505,1719751836108,-991.74,0.00013808,3]
[330743506,1719751836119,-500.0,0.00013808,3]
[330743507,1719751836128,-500.0,0.00013808,3]
[330743508,1719751836137,-500.0,0.00013808,3]
[330743509,1719751836146,-1278.01,0.00013808,3]
[330743510,1719751836157,-500.0,0.00013808,3]
[330743511,1719751836166,-500.0,0.00013808,3]
[330743512,1719751836175,-500.0,0.00013808,3]
[330743513,1719751836185,-500.0,0.00013808,3]
[330743514,1719751836196,-500.0,0.00013808,3]
[330743515,1719751836207,-615.14,0.00013808,3]
[330743516,1719751836216,-500.0,0.00013808,3]
[330743517,1719751836225,-500.0,0.00013808,3]
[330743518,1719751836235,-500.0,0.00013808,3]
[330743519,1719751836245,-500.0,0.00013808,3]
[330743520,1719751836257,-500.0,0.00013808,3]
[330743521,1719751836267,-362.9,0.00013808,3]
[330743522,1719751836277,-500.0,0.00013808,3]
[330743523,1719751836286,-500.0,0.00013808,3]
[330743524,1719751836296,-868.36,0.00013808,3]
[330743525,1719751836306,-500.0,0.00013846,3]
[330743526,1719751836315,-500.0,0.00013846,3]
[330743527,1719751836325,-500.0,0.00013846,3]
[330743528,1719751836335,-500.0,0.00013846,3]
[330743529,1719751836344,-500.0,0.00013846,3]
[330743530,1719751836354,-500.0,0.00013846,3]
[330743531,1719751836364,-500.0,0.00013846,3]
[330743532,1719751836374,-500.0,0.00013846,3]
[330743533,1719751836383,-879.82,0.00013846,3]
[330743534,1719751836392,-553.93486521,0.00013846,3]
[330743535,1719751836401,-500.0,0.00013846,3]
[330743536,1719751836411,-500.0,0.00013846,3]
[330743537,1719751836420,-500.0,0.00013846,3]
[330743538,1719751836430,-500.0,0.00013846,3]
[330743539,1719751836441,-500.0,0.00013846,3]
[330743540,1719751836452,-500.0,0.00013846,3]
[330743541,1719751836461,-842.06,0.00013846,3]
[330743542,1719751836471,-500.0,0.00013846,3]
[330743543,1719751836481,-500.0,0.00013846,3]
[330743544,1719751836490,-500.0,0.00013846,3]
[330743545,1719751836500,-500.0,0.00013846,3]
[330743546,1719751836510,-500.0,0.00013846,3]
[330743547,1719751836520,-500.0,0.00013846,3]
[330743548,1719751836529,-500.0,0.00013846,3]
[330743549,1719751836538,-500.0,0.00013846,3]
[330743550,1719751836549,-832.46,0.00013846,3]
[330743551,1719751836558,-332.42255846,0.00013846,3]
[330743552,1719751836568,-500.0,0.00013846,3]
[330743553,1719751836578,-500.0,0.00013846,3]
[330743554,1719751836587,-634.12,0.00013846,3]
[330743555,1719751836597,-690.52,0.00013846,3]
[330743556,1719751836606,-500.0,0.00013846,3]
[330743557,1719751836616,-701.32,0.00013846,3]
[330743558,1719751836626,-500.0,0.00013846,3]
[330743559,1719751836636,-500.0,0.00013846,3]
[330743560,1719751836645,-784.86,0.00013846,3]
[330743561,1719751836655,-639.63,0.00013846,3]
[330743562,1719751836665,-500.0,0.00013846,3]
[330743563,1719751836675,-500.0,0.00013846,3]
[330743564,1719751836684,-500.0,0.00013846,3]
[330743565,1719751836694,-500.0,0.00013846,3]
[330743566,1719751836706,-530.0,0.00013846,3]
[330743567,1719751836715,-500.0,0.00013846,3]
[330743568,1719751836725,-500.0,0.00013846,3]
[330743569,1719751836735,-500.0,0.00013846,3]
[330743570,1719751836745,-500.0,0.00013846,3]
[330743571,1719751836756,-1117.9,0.00013846,3]
[330743572,1719751836765,-1239.95,0.00013846,3]
[330743573,1719751836775,-3697.35,0.00013846,3]
[330743574,1719751836784,-1049.89,0.00013846,3]
[330743575,1719751836794,-500.0,0.00013846,3]
[330743576,1719751836804,-500.0,0.00013846,3]
[330743577,1719751836815,-500.0,0.00013846,3]
[330743578,1719751836824,-500.0,0.00013846,3]
[330743579,1719751836833,-500.0,0.00013846,3]
[330743580,1719751836842,-500.0,0.00013846,3]
[330743581,1719751836851,-500.0,0.00013846,3]
[330743582,1719751836860,-500.0,0.00013846,3]
[330743583,1719751836870,-898.26,0.00013846,3]
[330743584,1719751836879,-500.0,0.00013846,3]
[330743585,1719751836888,-500.0,0.00013846,3]
[330743586,1719751836898,-500.0,0.00013846,3]
[330743587,1719751836907,-500.0,0.00013846,3]
[330743588,1719751836916,-1040.13,0.00013846,3]
[330743589,1719751836926,-500.0,0.00013846,3]
[330743590,1719751836936,-500.0,0.00013846,3]
[330743591,1719751836947,-1788.81,0.00013846,3]
[330743592,1719751836958,-326.8,0.00013846,3]
[330743593,1719751836967,-1682.96,0.00013846,3]
[330743594,1719751836976,-583.65,0.00013846,3]
[330743595,1719751836987,-500.0,0.00013846,3]
[330743596,1719751836998,-780.8,0.00013846,3]
[330743597,1719751837008,-500.0,0.00013846,3]
[330743598,1719751837018,-554.14495257,0.00013846,3]
[330743599,1719751837029,-500.0,0.00013846,3]
[330743600,1719751837039,-1627.0,0.00013846,3]
[330743601,1719751837049,-500.0,0.00013846,3]
[330743602,1719751837058,-500.0,0.00013846,3]
[330743603,1719751837067,-500.0,0.00013846,3]
[330743604,1719751837076,-255.110423,0.00013846,3]
[330743605,1719751837086,-1185.16,0.00013846,3]
[330743606,1719751837095,-500.0,0.00013846,3]
[330743607,1719751837105,-500.0,0.00013846,3]
[330743608,1719751837119,-500.0,0.00013846,3]
[330743609,1719751837129,-500.0,0.00013846,3]
[330743610,1719751837139,-500.0,0.00013846,3]
[330743611,1719751837148,-500.0,0.00013846,3]
[330743612,1719751837159,-500.0,0.00013846,3]
[330743613,1719751837168,-500.0,0.00013846,3]
[330743614,1719751837178,-500.0,0.00013846,3]
[330743615,1719751837187,-500.0,0.00013846,3]
[330743616,1719751837196,-767.6,0.00013846,3]
[330743617,1719751837207,-500.0,0.00013846,3]
[330743618,1719751837217,-905.34,0.00013846,3]
[330743619,1719751837226,-500.0,0.00013846,3]
[330743620,1719751837236,-500.0,0.00013846,3]
[330743621,1719751837245,-500.0,0.00013846,3]
[330743622,1719751837255,-818.36,0.00013846,3]
[330743623,1719751837264,-618.19,0.00013846,3]
[330743624,1719751837273,-500.0,0.00013846,3]
[330743625,1719751837283,-3169.06,0.00013846,3]
[330743626,1719751837292,-500.0,0.00013846,3]
[330743627,1719751837302,-500.0,0.00013846,3]
[330743628,1719751837312,-478.11923802,0.00013846,3]
[330743629,1719751837322,-5356.83,0.00013846,3]
[330743630,1719751837331,-500.0,0.00013846,3]
[330743631,1719751837341,-500.0,0.00013846,3]
[330743632,1719751837350,-465.42167828,0.00013846,3]
[330743633,1719751837360,-620.19105377,0.00013846,3]
[330743634,1719751837370,-500.0,0.00013846,3]
[330743635,1719751837379,-500.0,0.00013846,3]
[330743636,1719751837389,-500.0,0.00013846,3]
[330743637,1719751837399,-626.47,0.00013846,3]
[330743638,1719751837408,-500.0,0.00013846,3]
[330743639,1719751837418,-500.0,0.00013846,3]
[330743641,1719751837428,-415.90866656,0.0001385,2]
[330743642,1719751837437,-169.29115711,0.00013856,2]
[330743643,1719751837447,-737.98964315,0.00013884,5]
[330743644,1719751837458,-787.67,0.00013884,3]
[330743645,1719751837468,-500.0,0.00013884,3]
[330743646,1719751837481,-500.0,0.00013884,3]
[330743647,1719751837491,-226.83200012,0.00013884,2]
[330743648,1719751837501,-500.0,0.00013884,3]
[330743649,1719751837511,-500.0,0.00013884,3]
[330743650,1719751837520,-693.6,0.00013884,3]
[330743651,1719751837530,-500.0,0.00013884,3]
[330743652,1719751837539,-545.34,0.00013884,3]
[330743653,1719751837548,-174.83982574,0.00013884,2]
[330743654,1719751837557,-777.64,0.00013884,3]
[330743655,1719751837567,-722.48,0.00013884,3]
[330743656,1719751837576,-969.22,0.00013884,3]
[330743657,1719751837586,-7107.90778508,0.00013884,2]
[330743658,1719751837596,-500.0,0.00013884,3]
[330743659,1719751837605,-741.62,0.00013884,3]
[330743660,1719751837614,-500.0,0.00013884,3]
[330743661,1719751837623,-669.88,0.00013884,3]
[330743662,1719751837633,-589.4,0.00013884,3]
[330743663,1719751837643,-500.0,0.00013884,3]
[330743664,1719751837652,-500.0,0.00013884,3]
[330743665,1719751837663,-573.53,0.00013884,3]
[330743666,1719751837673,-500.0,0.00013884,3]
[330743667,1719751837683,-509.75,0.00013884,3]
[330743668,1719751837693,-500.0,0.00013884,3]
[330743669,1719751837704,-500.0,0.00013884,3]
[330743670,1719751837714,-500.0,0.00013884,3]
[330743671,1719751837723,-578.21,0.00013884,3]
[330743672,1719751837733,-500.0,0.00013884,3]
[330743673,1719751837743,-500.0,0.00013884,3]
[330743674,1719751837752,-355.43,0.00013884,3]
[330743675,1719751837761,-867.03,0.00013884,3]
[330743676,1719751837771,-500.0,0.00013884,3]
[330743677,1719751837780,-500.0,0.00013884,3]
[330743678,1719751837789,-811.88,0.00013884,3]
[330743679,1719751837799,-694.99,0.00013884,3]
[330743680,1719751837808,-562.67,0.00013884,3]
[330743681,1719751837818,-1391.17,0.00013884,3]
[330743682,1719751837828,-500.0,0.00013884,3]
[330743683,1719751837837,-763.1,0.00013884,3]
[330743684,1719751837847,-500.0,0.00013884,3]
[330743685,1719751837856,-908.95,0.00013884,3]
[330743686,1719751837866,-500.0,0.00013884,3]
[330743687,1719751837875,-500.0,0.00013884,3]
[330743688,1719751837884,-500.0,0.00013884,3]
[330743689,1719751837894,-1299.58,0.00013884,3]
[330743690,1719751837903,-500.0,0.00013884,3]
[330743691,1719751837912,-911.82,0.00013884,3]
[330743692,1719751837921,-948.51,0.00013884,3]
[330743693,1719751837931,-500.0,0.00013884,3]
[330743694,1719751837940,-587.09657053,0.00013884,2]
[330743695,1719751837950,-822.34,0.00013884,3]
[330743696,1719751837959,-632.92,0.00013884,3]
[330743697,1719751837969,-500.0,0.00013884,3]
[330743699,1719751837978,-901.47,0.00013884,3]
[330743701,1719751837988,-690.12,0.00013884,3]
[330743703,1719751837997,-500.0,0.00013884,3]
[330743704,1719751838007,-500.0,0.00013884,3]
[330743705,1719751838016,-500.0,0.00013884,3]
[330743706,1719751838025,-500.0,0.00013884,3]
[330743707,1719751838035,-500.0,0.00013884,3]
[330743708,1719751838044,-500.0,0.00013884,3]
[330743709,1719751838054,-3760.72128107,0.00013884,2]
[330743710,1719751838063,-500.0,0.00013885,2]
[330743711,1719751838073,-100000.0,0.00013885,2]
[330743712,1719751838082,-208281.8947079,0.00013885,2]
[330743720,1719751839768,-227.04865744,0.00013128,2]
[330743721,1719751839779,-551.19,0.00013698,3]
[330743722,1719751839788,-211.30381979,0.00013808,3]
[330743723,1719751839800,-339.88618021,0.00013808,3]
[330743724,1719751839809,-57.44160261,0.00013846,3]
[330743725,1719751839821,-442.55839739,0.00013846,3]
[330743726,1719751839832,-500.0,0.00013884,3]
[330743727,1719751839842,-36718.1052921,0.00013885,2]
[330743728,1719751839852,-1300.0,0.000139,5]
[330743729,1719751839862,-181.83894052,0.000139,2]
[330743730,1719751839872,-172.4879815,0.000139,2]
[330743731,1719751839882,-789.07,0.00013917,3]
[330743732,1719751839891,-500.0,0.00013917,3]
[330743733,1719751839901,-500.0,0.00013917,3]
[330743734,1719751839911,-553.37,0.00013917,3]
[330743735,1719751839921,-500.0,0.00013917,3]
[330743736,1719751839931,-500.0,0.00013917,3]
[330743737,1719751839942,-500.0,0.00013917,3]
[330743738,1719751839952,-500.0,0.00013917,3]
[330743739,1719751839963,-712.25,0.00013917,3]
[330743740,1719751839973,-500.0,0.00013917,3]
[330743741,1719751839983,-500.0,0.00013917,3]
[330743742,1719751839994,-500.0,0.00013917,3]
[330743743,1719751840004,-500.0,0.00013917,3]
[330743744,1719751840015,-611.67110124,0.00013917,3]
[330743745,1719751840026,-500.0,0.00013917,3]
[330743746,1719751840037,-500.0,0.00013917,3]
[330743747,1719751840047,-500.0,0.00013917,3]
[330743748,1719751840056,-500.0,0.00013917,3]
[330743749,1719751840066,-570.68,0.00013917,3]
[330743750,1719751840075,-620.95071321,0.00013917,3]
[330743751,1719751840109,-858.74623956,0.00013917,3]
[330743752,1719751840125,-2378.41304723,0.00013917,3]
[330743753,1719751840134,-500.0,0.00013917,3]
[330743754,1719751840144,-500.0,0.00013917,3]
[330743755,1719751840154,-500.0,0.00013917,3]
[330743756,1719751840163,-500.0,0.00013917,3]
[330743757,1719751840172,-635.65941418,0.00013917,3]
[330743758,1719751840182,-511.71,0.00013917,3]
[330743759,1719751840191,-500.0,0.00013917,3]
[330743760,1719751840201,-500.0,0.00013917,3]
[330743761,1719751840212,-250.18610152,0.00013917,3]
[330743762,1719751840224,-249.81389848,0.00013917,3]
[330743763,1719751840234,-762.53,0.00013917,3]
[330743764,1719751840244,-500.0,0.00013917,3]
[330743765,1719751840254,-475.09698387,0.00013917,3]
[330743766,1719751841079,-464.64,0.00013698,3]
[330743775,1719751842761,-35.36,0.00013698,3]
[330743776,1719751842772,-722.83771398,0.00013698,3]
[330743777,1719751842890,-338.38228602,0.00013698,3]
[330743778,1719751842900,-5133.62,0.00013698,3]
[330743779,1719751842911,-500.0,0.00013808,3]
[330743780,1719751842920,-1061.22,0.00013808,3]
[330743781,1719751842930,-5133.62,0.00013808,3]
[330743782,1719751842940,-500.0,0.00013846,3]
[330743783,1719751842950,-500.0,0.00013884,3]
[330743784,1719751842962,-1238.46,0.00013884,3]
[330743785,1719751842971,-24.90301613,0.00013917,3]
[330743786,1719751842981,-2393.02,0.00013917,3]
[330743787,1719751842991,-500.0,0.00013917,3]
[330743788,1719751843002,-1565.21,0.00013917,3]
[330743789,1719751843012,-500.0,0.00013917,3]
[330743790,1719751843022,-598.22,0.00013917,3]
[330743791,1719751843032,-500.0,0.00013917,3]
[330743792,1719751843042,-500.0,0.00013917,3]
[330743793,1719751843052,-500.0,0.00013917,3]
[330743794,1719751843062,-500.0,0.00013917,3]
[330743795,1719751843071,-500.0,0.00013917,3]
[330743796,1719751843083,-500.0,0.00013917,3]
[330743797,1719751843092,-500.0,0.00013917,3]
[330743798,1719751843103,-500.0,0.00013917,3]
[330743799,1719751843113,-500.0,0.00013917,3]
[330743800,1719751843125,-652.00284774,0.00013917,3]
[330743801,1719751843139,-507.52715226,0.00013917,3]
[330743802,1719751843149,-500.0,0.00013917,3]
[330743803,1719751843159,-500.0,0.00013917,3]
[330743804,1719751843169,-500.0,0.00013917,3]
[330743805,1719751843179,-612.91,0.00013917,3]
[330743808,1719751843190,-209.14989569,0.00013917,3]
[330743811,1719751843207,-298.72,0.00013917,3]
[330743813,1719751843221,-17.76010431,0.00013917,3]
[330743815,1719751843230,-500.0,0.00013917,3]
[330743817,1719751843240,-614.41,0.00013917,3]
[330743818,1719751843250,-658.6,0.00013917,3]
[330743819,1719751843261,-888.46,0.00013917,3]
[330743821,1719751843271,-500.0,0.00013917,3]
[330743822,1719751843281,-500.0,0.00013917,3]
[330743823,1719751843291,-456.37770969,0.00013917,3]
[330743824,1719751843304,-219.27229031,0.00013917,3]
[330743825,1719751843314,-619.76,0.00013917,3]
[330743826,1719751843324,-500.0,0.00013917,3]
[330743827,1719751843334,-663.14,0.00013917,3]
[330743828,1719751843344,-500.0,0.00013917,3]
[330743829,1719751843354,-500.0,0.00013917,3]
[330743830,1719751843364,-629.72,0.00013917,3]
[330743831,1719751843375,-544.24,0.00013917,3]
[330743832,1719751843385,-1355.84,0.00013917,3]
[330743833,1719751843395,-500.0,0.00013917,3]
[330743834,1719751843406,-991.74,0.00013917,3]
[330743835,1719751843417,-500.0,0.00013917,3]
[330743836,1719751843427,-500.0,0.00013917,3]
[330743837,1719751843438,-500.0,0.00013917,3]
[330743838,1719751843449,-1278.01,0.00013917,3]
[330743839,1719751843461,-500.0,0.00013917,3]
[330743840,1719751843471,-500.0,0.00013917,3]
[330743841,1719751843482,-500.0,0.00013917,3]
[330743842,1719751843492,-500.0,0.00013917,3]
[330743843,1719751843504,-395.8,0.00013917,3]
[330743844,1719751843516,-615.14,0.00013917,3]
[330743845,1719751843526,-500.0,0.00013917,3]
[330743846,1719751843536,-599.53719532,0.00013917,3]
[330743847,1719751843548,-500.0,0.00013917,3]
[330743848,1719751843558,-500.0,0.00013917,3]
[330743849,1719751843569,-500.0,0.00013917,3]
[330743850,1719751843579,-500.0,0.00013917,3]
[330743851,1719751843590,-500.0,0.00013917,3]
[330743852,1719751843600,-868.36,0.00013917,3]
[330743853,1719751843610,-551.19,0.00013917,3]
[330743854,1719751843620,-500.0,0.00013917,3]
[330743855,1719751843630,-1061.22,0.00013917,3]
[330743856,1719751843641,-409.20121,0.0001395,2]
[330743857,1719751843651,-879.82,0.00013956,3]
[330743858,1719751843662,-842.06,0.00013956,3]
[330743859,1719751843674,-500.0,0.00013956,3]
[330743860,1719751843685,-500.0,0.00013956,3]
[330743861,1719751843696,-832.46,0.00013956,3]
[330743862,1719751843708,-500.0,0.00013956,3]
[330743863,1719751843719,-634.12,0.00013956,3]
[330743864,1719751843731,-690.52,0.00013956,3]
[330743865,1719751843744,-34.42686244,0.00013956,3]
[330743866,1719751843764,-465.57313756,0.00013956,3]
[330743867,1719751843774,-30.30666291,0.00013956,3]
[330743868,1719751843787,-671.01333709,0.00013956,3]
[330743869,1719751843798,-500.0,0.00013956,3]
[330743870,1719751843808,-96.52296058,0.00013956,3]
[330743871,1719751843831,-403.47703942,0.00013956,3]
[330743872,1719751843842,-2.20494352,0.00013956,3]
[330743873,1719751843856,-782.65505648,0.00013956,3]
[330743874,1719751843867,-639.63,0.00013956,3]
[330743875,1719751843878,-500.0,0.00013956,3]
[330743876,1719751843890,-500.0,0.00013956,3]
[330743877,1719751843902,-500.0,0.00013956,3]
[330743878,1719751843913,-500.0,0.00013956,3]
[330743879,1719751843925,-530.0,0.00013956,3]
[330743880,1719751843935,-500.0,0.00013956,3]
[330743881,1719751843947,-500.0,0.00013956,3]
[330743882,1719751843959,-500.0,0.00013956,3]
[330743883,1719751843970,-500.0,0.00013956,3]
[330743884,1719751843980,-1117.9,0.00013956,3]
[330743885,1719751843990,-1239.95,0.00013956,3]
[330743886,1719751844002,-3697.35,0.00013956,3]
[330743887,1719751844013,-1049.89,0.00013956,3]
[330743888,1719751844023,-500.0,0.00013956,3]
[330743889,1719751844033,-500.0,0.00013956,3]
[330743890,1719751844044,-500.0,0.00013956,3]
[330743891,1719751844054,-500.0,0.00013956,3]
[330743892,1719751844064,-500.0,0.00013956,3]
[330743893,1719751844075,-898.26,0.00013956,3]
[330743894,1719751844085,-1040.13,0.00013956,3]
[330743895,1719751844096,-1788.81,0.00013956,3]
[330743896,1719751844111,-1682.96,0.00013956,3]
[330743897,1719751844128,-583.65,0.00013956,3]
[330743898,1719751844141,-780.8,0.00013956,3]
[330743899,1719751844153,-1627.0,0.00013956,3]
[330743900,1719751844166,-500.0,0.00013956,3]
[330743901,1719751844180,-1185.16,0.00013956,3]
[330743902,1719751844194,-500.0,0.00013956,3]
[330743903,1719751844209,-500.0,0.00013956,3]
[330743904,1719751844224,-767.6,0.00013956,3]
[330743905,1719751844236,-905.34,0.00013956,3]
[330743906,1719751844250,-818.36,0.00013956,3]
[330743907,1719751844263,-3169.06,0.00013956,3]
[330743908,1719751844276,-626.47,0.00013956,3]
[330743909,1719751844289,-500.0,0.00013956,3]
[330743910,1719751844304,-500.0,0.00013956,3]
[330743911,1719751844319,-500.0,0.00013984,3]
[330743912,1719751844334,-500.0,0.00013984,3]
[330743913,1719751844348,-500.0,0.00013984,3]
[330743914,1719751844360,-500.0,0.00013984,3]
[330743915,1719751844372,-500.0,0.00013984,3]
[330743916,1719751844386,-627.93,0.00013984,3]
[330743917,1719751844398,-500.0,0.00013984,3]
[330743918,1719751844411,-500.0,0.00013984,3]
[330743919,1719751844424,-541.31,0.00013984,3]
[330743920,1719751844435,-500.0,0.00013984,3]
[330743921,1719751844448,-500.0,0.00013984,3]
[330743922,1719751844465,-500.0,0.00013984,3]
[330743923,1719751844479,-498.93,0.00013984,3]
[330743924,1719751844491,-612.98,0.00013984,3]
[330743925,1719751844504,-427.1892401,0.00013984,3]
[330743926,1719751844514,-500.0,0.00013984,3]
[330743927,1719751844525,-660.76,0.00013984,3]
[330743928,1719751844537,-500.0,0.00013984,3]
[330743929,1719751844552,-500.0,0.00013984,3]
[330743930,1719751844563,-500.0,0.00013984,3]
[330743931,1719751844574,-500.0,0.00013984,3]
[330743932,1719751844584,-500.0,0.00013984,3]
[330743933,1719751844596,-159.64322407,0.00013984,3]
[330743934,1719751844610,-459.49,0.00013984,3]
[330743935,1719751844620,-500.0,0.00013984,3]
[330743936,1719751844631,-500.0,0.00013984,3]
[330743937,1719751844641,-500.0,0.00013984,3]
[330743938,1719751844652,-500.0,0.00013984,3]
[330743939,1719751844670,-500.0,0.00013984,3]
[330743940,1719751844682,-500.0,0.00013984,3]
[330743941,1719751844693,-525.77209702,0.00013984,3]
[330743942,1719751844706,-500.0,0.00013984,3]
[330743943,1719751844717,-500.0,0.00013984,3]
[330743944,1719751844729,-500.0,0.00013984,3]
[330743945,1719751844741,-509.43,0.00013984,3]
[330743946,1719751844752,-500.0,0.00013984,3]
[330743947,1719751844763,-500.0,0.00013984,3]
[330743948,1719751844775,-500.0,0.00013984,3]
[330743949,1719751844786,-500.0,0.00013984,3]
[330743950,1719751844797,-500.0,0.00013984,3]
[330743951,1719751844808,-500.0,0.00013984,3]
[330743952,1719751844819,-500.0,0.00013984,3]